[Event "Polish University-ch Open 2024"]
[Site "Lublin"]
[Date "2024.02.23"]
[Round "4.1"]
[White "Dzida, Kamil"]
[Black "Kosakowski, Jakub"]
[Result "0-1"]
[ECO "B15"]
[WhiteElo "2403"]
[BlackElo "2482"]
[Annotator "TA"]
[PlyCount "133"]
[EventDate "2024.02.22"]
[EventType "swiss"]
[EventCountry "POL"]
[SourceTitle "playchess.com"]
[Source "ChessBase"]
[SourceQuality "1"]
[TimeControl "600+3"]

{[%evp 32,133,75,0,0,-26,0,0,0,0,0,-7,0,0,0,0,0,0,0,0,0,-13,-3,-25,0,0,0,0,0,0,0,-42,-39,-136,-134,-137,-121,-137,-26,-660,-232,-232,-233,-249,-249,-454,-447,-429,-402,-714,-193,-193,-185,-271,-271,-220,-233,-579,-471,-500,-492,-1315,-1264,-1083,-656,-606,-622,-747,-679,-672,-320,-313,-309,-305,-298,-298,-291,-377,-236,-570,-370,-1026,-998,-1216,-529,-1707,-1463,-1489,-1565,-5093,-5069,-4500,-4091,-1855,-1801,-11898,-9951,-29958,-12841,-29976,-29977,-29982,-29982,-29984]} 1. e4 {[%emt 0:00:03]} c6 {[%emt 0:00:26]} 2. d4 {[%emt 0:00:12]} d5 {[%emt 0:00:04]} 3. Nc3 {[%emt 0:00:02]} dxe4 {[%emt 0:00:08]} 4. Nxe4 {[%emt 0:00:02]} Nf6 {[%emt 0:00:10]} 5. Nxf6+ {[%emt 0:00:02]} exf6 {[%emt 0:00:02]} 6. c3 {[%emt 0:00:02]} Bd6 {[%emt 0:00:03]} 7. Bd3 {[%emt 0:00:01]} O-O {[%emt 0:00:03]} 8. Qc2 {[%emt 0:00:02]} Re8+ {[%emt 0:00:03] B15: Caro-Kann: 3 Nc3: 3...g6 and 3...dxe4 4 Nxe4 Nf6 5 Nxf6+ exf6.} 9. Ne2 {[%emt 0:00:01]} f5 {[%emt 0:00:17]} 10. Bxf5 {[%emt 0:00:50]} Bxf5 {[%emt 0:00:03]} 11. Qxf5 {[%emt 0:00:01]} Nd7 {[%emt 0:00:02]} 12. Be3 {[%emt 0:00:09]} Nb6 {[%emt 0:00:02]} 13. O-O {[%emt 0:01:27]} Nc4 {[%emt 0:00:12]} 14. Qf3 {[%emt 0:02:40]} Qe7 {[%emt 0:02:13]} 15. Ng3 {[%emt 0:00:05]} Bxg3 {[%emt 0:03:49]} 16. hxg3 $146 {[%emt 0:00:17]} ({Predecessor:} 16. Qxg3 Nxb2 17. Rae1 Nc4 18. d5 Nxe3 19. Rxe3 Qc5 20. dxc6 Qxc6 21. Rfe1 Rxe3 22. Qxe3 {0-1 Kavyev,R (2167)-Ovetchkin,R (2538) Samara Polugaevsky Memorial 9th 2019 (2)}) 16... Nxe3 {[%emt 0:01:08]} (16... Nxb2 $11 17. Qe2 Na4) 17. fxe3 {[%emt 0:00:04]} (17. Rfe1 $16) 17... Qxe3+ $11 {[%emt 0:00:15]} 18. Rf2 {[%emt 0:00:40]} Qxf3 {[%emt 0:00:09]} 19. gxf3 {[%emt 0:00:12]} Re3 {[%emt 0:00:06]} 20. Rd1 {[%emt 0:00:11]} Rae8 {[%emt 0:00:16]} 21. Kg2 {[%emt 0:00:02]} h5 {[%emt 0:00:27]} 22. Rdd2 {[%emt 0:01:19]} g6 {[%emt 0:00:05]} 23. d5 {[%emt 0:00:15]} cxd5 {[%emt 0:00:07]} 24. Rxd5 {[%emt 0:00:01]} R8e7 {[%emt 0:00:08]} 25. a4 {[%emt 0:00:11]} Kg7 {[%emt 0:00:05]} 26. Rd6 {[%emt 0:00:23]} g5 {[%emt 0:00:19]} 27. f4 {[%emt 0:00:51]} h4 {[%emt 0:00:36]} 28. gxh4 {[%emt 0:00:21]} gxh4 {[%emt 0:00:01]} 29. f5 {[%emt 0:00:13]} Rg3+ {[%emt 0:00:02]} 30. Kh2 {[%emt 0:00:01]} Ree3 {[%emt 0:00:01]} 31. Rd4 {[%emt 0:00:20]} Rh3+ {[%emt 0:00:07]} 32. Kg2 {[%emt 0:00:10]} (32. Kg1 $15) 32... Reg3+ $17 {[%emt 0:00:02]} 33. Kf1 {[%emt 0:00:01]} Rh1+ {[%emt 0:00:02]} 34. Ke2 {[%emt 0:00:01]} h3 {[%emt 0:00:01]} ({Black should try} 34... Rb1 $17 35. Rd2 Kf6) 35. Rf3 $2 {[%emt 0:00:30][%mdl 8192]} (35. f6+ $11 Kg6 36. Rd8) 35... Rh2+ $2 {[%emt 0:00:06]} (35... Rg2+ 36. Rf2 Rb1 37. Rxg2+ hxg2 38. Rg4+ Kf6) 36. Rf2 $19 {[%emt 0:00:03]} Rxf2+ {[%emt 0:00:04]} 37. Kxf2 {[%emt 0:00:01]} Rg2+ {[%emt 0:00:01]} 38. Kf3 $2 {[%emt 0:00:03]} (38. Kf1 {might work better.}) 38... Rxb2 $19 {[%emt 0:00:02]} 39. Rh4 {[%emt 0:00:01]} h2 {[%emt 0:00:01]} 40. Kf4 {[%emt 0:00:01]} (40. a5 $142) 40... Kf6 $2 {[%emt 0:00:05]} (40... a5 {Hoping for ...b5.} 41. Kg3 Kf6) 41. Rh6+ $19 {[%emt 0:00:02] [#]} Ke7 $1 {[%emt 0:00:02]} 42. Ke5 {[%emt 0:00:02]} (42. a5 {was necessary.}) 42... Re2+ $19 {[%emt 0:00:06]} 43. Kd5 {[%emt 0:00:06]} b6 {[%emt 0:00:06]} 44. f6+ $2 {[%emt 0:00:06]} (44. Kd4 {is more resistant.}) 44... Kd7 $19 {[%emt 0:00:02]} 45. Rh7 {[%emt 0:00:01]} Rd2+ {[%emt 0:00:02]} 46. Ke5 {[%emt 0:00:01]} (46. Ke4 $142 Ke6 47. Rh8) 46... Kc6 $19 {[%emt 0:00:02]} 47. Ke4 {[%emt 0:00:08]} Kd6 {[%emt 0:00:01]} 48. Ke3 {[%emt 0:00:03]} Ra2 {[%emt 0:00:02]} 49. Kd3 {[%emt 0:00:05]} Ke6 {[%emt 0:00:02]} 50. Rh6 {[%emt 0:00:01]} Rxa4 {[%emt 0:00:07]} (50... Kf5 $142 51. Ke3 Kg4 (51... Rxa4 $2 52. Rxh2 Kxf6 53. Kd3 $19)) 51. Rxh2 $19 {[%emt 0:00:02]} Kxf6 {[%emt 0:00:01]} 52. Rf2+ {[%emt 0:00:02]} Ke6 {[%emt 0:00:02]} 53. Re2+ {[%emt 0:00:02]} Kf5 {[%emt 0:00:03]} 54. Re7 {[%emt 0:00:01]} f6 {[%emt 0:00:02]} 55. c4 $2 {[%emt 0:00:04]} (55. Re1) 55... Ra1 {[%emt 0:00:03]} 56. Rh7 $2 {[%emt 0:00:06]} (56. Rf7) 56... Kf4 $19 {[%emt 0:00:06]} 57. Rh4+ {[%emt 0:00:05]} Kg5 {[%emt 0:00:02]} (57... Kg3 $142 58. Rh5 Kg4) 58. Rh2 {[%emt 0:00:03]} f5 {[%emt 0:00:01]} 59. Rg2+ {[%emt 0:00:01]} Kf4 {[%emt 0:00:02]} 60. Rf2+ {[%emt 0:00:06]} Kg4 {[%emt 0:00:02]} 61. Rg2+ {[%emt 0:00:01]} Kf3 {[%emt 0:00:01]} 62. Rg7 {[%emt 0:00:02]} f4 {[%emt 0:00:01]} 63. Kd4 {[%emt 0:00:02]} Kf2 {[%emt 0:00:05]} 64. Rf7 {[%emt 0:00:04]} f3 {[%emt 0:00:02]} 65. Ke4 {[%emt 0:00:01]} Ra3 {[%emt 0:00:02]} 66. Rf6 {[%emt 0:00:02]} Ke2 {[%emt 0:00:01]} 67. Ke5 {[%emt 0:00:05]} 0-1

[Event "Polish University-ch Open 2024"]
[Site "Lublin"]
[Date "2024.02.23"]
[Round "4.2"]
[White "Janik, Igor"]
[Black "Chylewski, Patryk"]
[Result "1-0"]
[ECO "D02"]
[WhiteElo "2499"]
[BlackElo "2285"]
[Annotator "TA"]
[PlyCount "83"]
[EventDate "2024.02.22"]
[EventType "swiss"]
[EventCountry "POL"]
[SourceTitle "playchess.com"]
[Source "ChessBase"]
[SourceQuality "1"]
[TimeControl "600+3"]

{[%evp 11,83,-4,20,15,21,16,18,-33,-11,-32,-31,-27,-27,-81,-45,-52,-14,-15,0,-55,9,-9,0,-22,0,0,56,40,33,39,53,62,48,53,85,53,101,108,159,148,221,91,158,97,108,95,111,106,126,65,124,108,127,117,158,111,296,120,425,215,543,547,492,199,215,0,525,518,551,162,29989,29990,29997,29998]} 1. d4 {[%emt 0:10:06]} d5 {[%emt 0:00:25]} 2. Bf4 {[%emt 0:00:00]} Nf6 {[%emt 0:00:03]} 3. e3 {[%emt 0:00:00]} e6 {[%emt 0:00:01]} 4. Nf3 {[%emt 0:00:00]} c5 {[%emt 0:00:02]} 5. c3 {[%emt 0:00:00]} Nc6 {[%emt 0:00:01]} 6. Nbd2 {[%emt 0:00:00]} cxd4 {[%emt 0:00:01]} 7. exd4 {[%emt 0:00:00]} Nh5 {[%emt 0:00:03]} 8. Bg5 {[%emt 0:00:00]} f6 {[%emt 0:00:05]} 9. Bh4 {[%emt 0:00:00]} (9. Be3 $11 Bd6 10. g3) 9... g6 {[%emt 0:00:18]} 10. Bb5 {[%emt 0:00:00]} Bg7 {[%emt 0:00:04]} 11. O-O {[%emt 0:00:00]} O-O {[%emt 0:00:03]} 12. Re1 {[%emt 0:00:00]} (12. Ba4 $11 {keeps the balance.}) 12... Qb6 {[%emt 0:00:12]} 13. Qb3 {[%emt 0:00:00]} Bd7 {[%emt 0:00:45]} 14. Bf1 {[%emt 0:00:00]} Qc7 {[%emt 0:00:22]} 15. Rac1 {[%emt 0:00:00]} (15. c4 $11) 15... Na5 {[%emt 0:00:19]} (15... g5 $15 16. Bg3 Nxg3 17. hxg3 g4) 16. Qd1 $11 {[%emt 0:00:00]} b5 {[%emt 0:00:09]} 17. Nb3 {[%emt 0:00:00]} Nxb3 {[%emt 0:00:07]} (17... Bh6 {with more complications.} 18. Nc5 Bxc1 19. Qxc1 Nb7) 18. axb3 {[%emt 0:00:00]} Qb7 {[%emt 0:00:24]} ({Black should try} 18... Bh6 $11) 19. b4 $14 {[%emt 0:00:00]} a5 {[%emt 0:00:06]} 20. bxa5 {[%emt 0:00:00]} Rxa5 {[%emt 0:00:02]} 21. Nd2 {[%emt 0:00:00]} Ra2 {[%emt 0:00:38][%cal Og7h6]} 22. Rb1 {[%emt 0:00:00]} b4 {[%emt 0:00:06]} 23. c4 {[%emt 0:00:00]} dxc4 {[%emt 0:00:28]} (23... Rc8 $14) 24. Bxc4 $16 {[%emt 0:00:00]} Raa8 {[%emt 0:01:19]} (24... Ra7 $142) 25. Ne4 $1 {[%emt 0:00:00]} Nf4 {[%emt 0:00:32] [#]} (25... Kh8 $16 {was called for.} 26. Nc5 Qc6 27. Nxd7 (27. Bxe6 Nf4 $14) 27... Qxd7 28. Bxe6 (28. Rxe6 Nf4 $16) 28... Qb7) 26. Bg3 {[%emt 0:00:00]} (26. Qf3 $1 $18 {Strongly threatening Nxf6+.} Qc6 27. Bb3 (27. Qxf4 g5 $16)) 26... Nd5 {[%emt 0:00:16]} (26... f5 $142 27. Bxf4 fxe4) 27. Qb3 {[%emt 0:00:00]} ({White should play} 27. Qe2 Qc6 28. Nc5) 27... Qc6 {[%emt 0:01:08]} 28. Nc5 $36 {[%emt 0:00:00][%mdl 2048] Keeping Black busy.} Rfd8 {[%emt 0:00:41]} 29. Rbc1 {[%emt 0:00:00] Bxd5 would now be deadly. White is much more active.} Bc8 {[%emt 0:00:12]} 30. Nd3 {[%emt 0:00:00]} (30. Qf3 $16) 30... Qb6 {[%emt 0:02:41] [#]} (30... Bf8 $14) 31. Nf4 $1 {[%emt 0:00:00]} Nxf4 {[%emt 0:00:00]} 32. Bxf4 {[%emt 0:00:00][%cal Rc4e6]} Qxd4 {[%emt 0:00:00]} 33. Be3 {[%emt 0:00:00]} (33. Red1 $142 Qb6 34. Bd5 (34. Rxd8+ Qxd8 35. h3 Kf7 $16)) 33... Qg4 {[%emt 0:00:00]} (33... Qd6 $16) 34. Qxb4 {[%emt 0:00:00]} (34. Be2 $18 {is more deadly.} Qf5 35. Bf3 (35. Qxb4 Bf8 $16)) 34... Kh8 $2 {[%emt 0:00:00][%mdl 8192]} (34... Bf8 $16 {is more resistant.} 35. Qb3 Kh8) 35. h3 {[%emt 0:00:00]} (35. Qe7 $142 Rg8 36. Red1) 35... Qf5 $2 {[%emt 0:00:00]} (35... Qe4 36. Qe7 Bb7) 36. Qe7 $18 {[%emt 0:00:00]} Rg8 {[%emt 0:00:00]} 37. Bd4 {[%emt 0:00:00]} (37. Red1 $142 {Rd8 is the strong threat.} Bf8 38. Qf7) 37... Qf4 {[%emt 0:00:00]} 38. Be3 {[%emt 0:00:00]} (38. Red1) 38... Qf5 $1 {[%emt 0:00:00] Dodges Bb5} 39. Red1 {[%emt 0:00:00]} Qe4 {[%emt 0:00:00]} 40. Bd4 $2 {[%emt 0:00:00]} (40. Be2 Bf8 41. Qxf6+ Bg7 42. Qe7) 40... Rf8 $2 {[%emt 0:00:12] [#]} (40... Qb7 $18 41. Qxf6 (41. Bxf6 Qxe7 42. Bxe7 Bxb2 $16) (41. Qxb7 Bxb7 42. Bxe6 Rgd8 $16) 41... Bxf6 (41... e5 $2 42. Qxe5 Bf5 43. Bd5 $18) 42. Bxf6+ Qg7 43. Bxg7+ Kxg7) 41. Bxf6 $1 {[%emt 0:00:00][%mdl 512]} Rxf6 {[%emt 0:00:15]} (41... Qxg2+ 42. Kxg2) 42. Rd8+ {[%emt 0:00:00] Weighted Error Value: White=0.66/Black=0.57.  Loses game:     	---       	Black=2      Missed win:     	White=1     	---        Mistake:       	White=11    	Black=9      Inaccurate:     	White=1     	Black=4      OK:         	White=8     	Black=7      Best:        	White=1     	Black=1      Strong:       	White=1     	Black=1      Brilliant:      	White=1     	---} 1-0

[Event "Polish University-ch Open 2024"]
[Site "Lublin"]
[Date "2024.02.23"]
[Round "4.3"]
[White "Karpus, Michal"]
[Black "Szpar, Milosz"]
[Result "1/2-1/2"]
[ECO "C03"]
[WhiteElo "2243"]
[BlackElo "2495"]
[Annotator "TA"]
[PlyCount "59"]
[EventDate "2024.02.22"]
[EventType "swiss"]
[EventCountry "POL"]
[SourceTitle "playchess.com"]
[Source "ChessBase"]
[SourceQuality "1"]
[TimeControl "600+3"]

{[%evp 13,59,0,19,3,18,1,0,0,0,-6,0,0,0,-4,0,-21,-20,-94,-13,-30,8,14,8,16,12,14,10,12,10,0,0,0,0,0,0,0,0,-4,0,-4,0,0,0,0,0,4,43,39]} 1. e4 {[%emt 0:00:00]} e6 {[%emt 0:00:04]} 2. d4 {[%emt 0:00:03]} d5 {[%emt 0:00:01]} 3. Nd2 {[%emt 0:00:07]} Be7 {[%emt 0:00:06]} 4. Ngf3 {[%emt 0:00:11]} Nf6 {[%emt 0:00:01]} 5. Bd3 {[%emt 0:00:09]} c5 {[%emt 0:00:10]} 6. exd5 {[%emt 0:00:08]} Qxd5 {[%emt 0:00:03]} 7. dxc5 {[%emt 0:00:11]} Nbd7 {[%emt 0:00:09]} 8. O-O {[%emt 0:00:59]} Nxc5 {[%emt 0:00:27]} 9. Bc4 {[%emt 0:00:34]} Qc6 {[%emt 0:00:16]} 10. Ne5 {[%emt 0:00:20] The position is equal.} Qc7 {[%emt 0:00:09]} 11. Bb5+ {[%emt 0:00:05]} Bd7 {[%emt 0:00:31]} 12. Nxd7 {[%emt 0:00:46]} Ncxd7 {[%emt 0:00:05]} 13. Nf3 {[%emt 0:00:14]} O-O {[%emt 0:00:04]} 14. Qd4 {[%emt 0:00:47]} Rfd8 {[%emt 0:01:30][%cal Bf8d8,Bd8d4,Bd4b4][%mdl 32] next ...Nb6 is good for Black.} 15. Bf4 {[%emt 0:01:16]} (15. c3 $11 {keeps the balance.}) 15... e5 {[%emt 0:00:32]} (15... Qxc2 $17 {Threatens to win with ...Nc5.} 16. Rfc1 Qf5) 16. Nxe5 {[%emt 0:00:22]} Nxe5 {[%emt 0:00:29]} 17. Bxe5 {[%emt 0:00:28]} (17. Qxe5 $2 {loses.} Bd6 (17... Qxc2 $2 {perishes.} 18. Qxe7 a6 19. Rac1 $18) 18. Qe2 Bxf4 $19) 17... Rxd4 {[%emt 0:03:42]} 18. Bxc7 {[%emt 0:00:02]} Rb4 {[%emt 0:00:04][%csl LRb2,LRb5]} 19. Bd3 {[%emt 0:00:30] Black should prevent Rae1.} Rxb2 {[%emt 0:00:05]} 20. Be5 {[%emt 0:00:35]} Rb4 {[%emt 0:00:10]} 21. Rab1 {[%emt 0:00:30]} Nd7 {[%emt 0:00:32]} 22. Bc3 {[%emt 0:01:34] A strong pair of Bishops.} Rxb1 {[%emt 0:00:02]} 23. Rxb1 {[%emt 0:00:01]} b6 {[%emt 0:00:09]} 24. Bb5 {[%emt 0:00:29]} Nc5 {[%emt 0:00:35]} 25. Rd1 {[%emt 0:00:08]} Ne4 {[%emt 0:00:32]} 26. Bd4 {[%emt 0:00:24] [#] And now Bc6 would win.} Rd8 {[%emt 0:00:03]} 27. Rd3 {[%emt 0:00:13] Prevents Nc3.} Nd6 {[%emt 0:00:31]} 28. Ba6 {[%emt 0:00:06]} Ne4 {[%emt 0:00:09]} 29. Kf1 {[%emt 0:00:11]} Nc5 {[%emt 0:00:14]} 30. Bxc5 {[%emt 0:00:01] Weighted Error Value: White=0.09 (flawless) /Black=0.11 (very precise) .  Mistake:       	White=1     	Black=1      Inaccurate:     	---       	Black=2      OK:         	White=7     	Black=7      Best:        	White=1     	Black=2} 1/2-1/2

[Event "Polish University-ch Open 2024"]
[Site "Lublin"]
[Date "2024.02.23"]
[Round "4.4"]
[White "Psyk, Radoslaw"]
[Black "Galuszka, Tomasz"]
[Result "1-0"]
[ECO "B13"]
[WhiteElo "2461"]
[BlackElo "2181"]
[Annotator "TA"]
[PlyCount "81"]
[EventDate "2024.02.22"]
[EventType "swiss"]
[EventCountry "POL"]
[SourceTitle "playchess.com"]
[Source "ChessBase"]
[SourceQuality "1"]
[TimeControl "600+3"]

{[%evp 11,81,15,35,-24,34,25,22,27,27,18,14,25,23,10,11,0,10,14,11,0,0,-13,9,0,47,51,66,72,66,73,70,75,72,59,65,57,72,49,74,0,159,160,152,162,168,162,159,156,155,130,129,114,111,111,113,114,117,117,118,118,116,116,118,118,122,91,116,116,625,617,451,385]} 1. e4 {[%emt 0:00:03]} c6 {[%emt 0:00:01]} 2. d4 {[%emt 0:00:02]} d5 {[%emt 0:00:01]} 3. exd5 {[%emt 0:00:02]} cxd5 {[%emt 0:00:02]} 4. Bd3 {[%emt 0:00:01]} Nc6 {[%emt 0:00:02]} 5. c3 {[%emt 0:00:03]} Qc7 {[%emt 0:00:02]} 6. h3 {[%emt 0:00:19]} g6 {[%emt 0:00:36]} 7. Qc2 {[%emt 0:00:31]} (7. Ne2 $14) 7... e5 {[%emt 0:00:21]} ({Better is} 7... f6 $11) 8. dxe5 $14 {[%emt 0:00:15]} Nxe5 {[%emt 0:00:02]} 9. Bb5+ {[%emt 0:00:18] The position is equal.} Nc6 {[%emt 0:00:18]} 10. Nf3 {[%emt 0:00:13]} Bg7 {[%emt 0:00:11]} 11. O-O {[%emt 0:00:10]} Nge7 {[%emt 0:00:02]} 12. Bg5 {[%emt 0:00:45]} O-O {[%emt 0:00:05]} 13. Qd2 {[%emt 0:00:07]} a6 {[%emt 0:00:38]} 14. Bd3 {[%emt 0:00:53]} Nf5 {[%emt 0:02:18]} 15. Bxf5 {[%emt 0:02:04]} Bxf5 {[%emt 0:00:01]} 16. Qxd5 {[%emt 0:00:01]} Rfe8 {[%emt 0:00:01]} 17. Nbd2 {[%emt 0:00:14]} Ne5 {[%emt 0:02:41]} (17... h6 $11 {should be considered.} 18. Be3 Bxh3) 18. Nd4 {[%emt 0:00:48]} Bd3 {[%emt 0:00:48]} 19. Rfe1 {[%emt 0:00:01]} Nc4 {[%emt 0:00:11]} 20. Nxc4 {[%emt 0:00:37]} Bxc4 {[%emt 0:00:01] This pair of bishops is nice.} 21. Qf3 {[%emt 0:00:04] White is more active.} h6 {[%emt 0:00:18]} 22. Be3 {[%emt 0:00:40]} Rad8 {[%emt 0:00:11]} 23. a3 {[%emt 0:00:21]} b5 {[%emt 0:00:15]} 24. Rad1 {[%emt 0:00:10]} Bd5 {[%emt 0:00:03] [#]} 25. Nxb5 {[%emt 0:01:01]} Bxf3 $2 {[%emt 0:01:42] Black is now going downhill.} (25... Qc4 $1 $11 26. Rxd5 Rxd5) 26. Nxc7 $16 {[%emt 0:00:01]} Bxd1 {[%emt 0:00:16][%cal Bf3d1,Bd1b3,Bb3d5][%mdl 32]} 27. Nxe8 {[%emt 0:00:02]} Bb3 {[%emt 0:00:12]} 28. Nxg7 {[%emt 0:00:32]} Kxg7 $18 {[%emt 0:00:02][%mdl 4096] Endgame. KRB-KRB} 29. Bd4+ {[%emt 0:00:02]} Kf8 {[%emt 0:00:00]} 30. Re5 {[%emt 0:00:50]} Rd5 {[%emt 0:00:01]} 31. Rxd5 {[%emt 0:00:09]} Bxd5 $16 {[%emt 0:00:02] KB-KB} 32. f3 {[%emt 0:00:02]} Ke7 {[%emt 0:00:09]} 33. Kf2 {[%emt 0:00:01]} Kd6 {[%emt 0:00:03]} 34. Ke3 {[%emt 0:00:01]} Bc4 {[%emt 0:00:02]} 35. Bg7 {[%emt 0:00:04]} h5 {[%emt 0:00:02]} 36. h4 {[%emt 0:00:12]} Kd5 {[%emt 0:00:02]} 37. b4 {[%emt 0:00:10]} Bb3 {[%emt 0:00:03]} 38. Bd4 {[%emt 0:00:01]} Bc4 {[%emt 0:00:01]} 39. Kf4 {[%emt 0:00:01] Threatens to win with Kg5.} Bb3 $2 {[%emt 0:00:06][%mdl 8192]} (39... Bf1 $16) 40. Kg5 $18 {[%emt 0:00:03]} Ke6 {[%emt 0:00:05] [#]} 41. g4 $1 {[%emt 0:00:04] Weighted Error Value: White=0.10 (very precise) /Black=0.34.  Loses game:     	---       	Black=1      Mistake:       	White=1     	Black=3      OK:         	White=17    	Black=14     Best:        	White=3     	Black=1} 1-0

[Event "Polish University-ch Open 2024"]
[Site "Lublin"]
[Date "2024.02.23"]
[Round "4.5"]
[White "Baum, Jonasz"]
[Black "Jarzebowski, Kacper"]
[Result "1-0"]
[ECO "E05"]
[WhiteElo "2400"]
[BlackElo "2135"]
[Annotator "RC"]
[PlyCount "37"]
[EventDate "2024.02.22"]
[EventType "swiss"]
[EventCountry "POL"]
[SourceTitle "playchess.com"]
[Source "ChessBase"]
[SourceQuality "1"]
[TimeControl "600+3"]

1. d4 {[%emt 0:00:01]} Nf6 {[%emt 0:00:01]} 2. c4 {[%emt 0:00:01]} e6 {[%emt 0:00:00]} 3. Nc3 {[%emt 0:00:04]} d5 {[%emt 0:00:01]} 4. Nf3 {[%emt 0:00:15]} Be7 {[%emt 0:00:01]} 5. g3 {[%emt 0:00:04]} O-O {[%emt 0:00:03]} 6. Bg2 {[%emt 0:00:01]} a6 {[%emt 0:00:33]} 7. O-O {[%emt 0:00:17]} dxc4 {[%emt 0:00:02]} 8. Ne5 {[%emt 0:00:01]} Nc6 {[%emt 0:00:32]} 9. Nxc6 {[%emt 0:02:50]} bxc6 {[%emt 0:00:01]} 10. Qa4 {[%emt 0:00:15]} Rb8 {[%emt 0:02:38]} 11. Rd1 {[%emt 0:00:27]} Rb4 {[%emt 0:01:03]} 12. Qc2 {[%emt 0:00:08]} Qe8 {[%emt 0:00:35]} 13. a3 {[%emt 0:00:18]} Rb8 {[%emt 0:00:19]} 14. Na4 {[%emt 0:00:02]} c5 {[%emt 0:00:30]} 15. Nxc5 {[%emt 0:00:27]} Bxc5 {[%emt 0:00:01]} 16. dxc5 {[%emt 0:00:01]} Qb5 {[%emt 0:00:02]} 17. Rd4 {[%emt 0:00:57]} c3 {[%emt 0:01:55]} 18. Rb4 {[%emt 0:00:22]} cxb2 {[%emt 0:01:23]} 19. Bxb2 {[%emt 0:00:03]} 1-0